fUSD/lending_fUSD_20240327
["ID","MTS","AMOUNT","RATE_DAILY","PERIOD"]
[320818158,1711572799455,359.48685988,0.00018,2]
[320818160,1711572821492,301.12613202,0.00018,2]
[320818161,1711572830998,152.15500899,0.00040465,35]
[320818162,1711572842493,10000.0,0.00018,2]
[320818163,1711572842519,444181.30266257,0.00018,2]
[320818165,1711572874854,1101.0053077,0.00018,2]
[320818167,1711572880366,150.25051949,0.00040465,120]
[320818168,1711572902684,20000.0,0.00018,2]
[320818169,1711572902711,4562.22276384,0.00018,2]
[320818170,1711572918687,7775.91003084,0.00018,2]
[320818171,1711572938683,24562.22276384,0.00018,2]
[320818172,1711573059045,179.18355976,0.00018,2]
[320818173,1711573062495,300.0,0.00018,2]
[320818174,1711573062832,24562.22276384,0.00018,2]
[320818183,1711573428500,152.155009,0.00040372,35]
[320818185,1711573750116,-533.73881074,0.00020998,2]
[320818186,1711573750136,-2054.33198926,0.00020999,2]
[320818368,1711573831805,-397.7418011,0.00020999,2]
[320818369,1711573831817,-1029.07753147,0.00020999,2]
[320818370,1711573831865,-166.7105259,0.00020999,2]
[320818371,1711573831875,-524.1140179,0.00021,2]
[320818372,1711573831934,-277.21126342,0.00021,2]
[320818373,1711573832090,-1493.23825177,0.00021,2]
[320818374,1711573832100,-159.55771281,0.000239,2]
[320818375,1711573832110,-223.94252704,0.00024,2]
[320818376,1711573832119,-159.5577127,0.00026162,2]
[320818377,1711573832128,-250.0,0.00027,3]
[320818378,1711573832138,-159.5577127,0.00028424,2]
[320818379,1711573832147,-300.0,0.00029,3]
[320818380,1711573832156,-150.0,0.00029999,2]
[320818381,1711573832165,-406.8028529,0.0003,2]
[320818382,1711573832175,-1811.90960276,0.0003,7]
[320818384,1711573832184,-1120.49650335,0.00030372,28]
[320818386,1711573832193,-972.0,0.000306,2]
[320818388,1711573832203,-159.5577127,0.00030687,2]
[320818390,1711573832212,-159.5577127,0.00032949,2]
[320818391,1711573832221,-494.45,0.0003466,2]
[320818393,1711573832230,-159.5577127,0.00035211,2]
[320818395,1711573832239,-1500.0,0.000359,2]
[320818396,1711573832248,-500.0,0.00036507,2]
[320818397,1711573832258,-716.26,0.00036541,2]
[320818398,1711573832267,-170.2,0.00036551,120]
[320818399,1711573832276,-234.46,0.00036551,2]
[320818400,1711573832285,-1333.37,0.00036567,2]
[320818401,1711573832295,-500.0,0.00036578,2]
[320818402,1711573832309,-23900.0,0.00036607,2]
[320818403,1711573832318,-250.0,0.00036874,110]
[320818404,1711573832327,-494.45,0.00036924,2]
[320818405,1711573832336,-150.0,0.00036998,2]
[320818406,1711573832346,-150.0,0.00037004,2]
[320818407,1711573832355,-844.12,0.00037023,2]
[320818408,1711573832364,-154.64,0.00037134,2]
[320818409,1711573832374,-44622.75,0.00037148,2]
[320818410,1711573832384,-250.0,0.0003719,2]
[320818411,1711573832393,-3235.34,0.00037201,2]
[320818412,1711573832402,-250.0,0.00037228,2]
[320818413,1711573832411,-500.0,0.00037242,2]
[320818414,1711573832420,-600.0,0.00037255,2]
[320818415,1711573832430,-154.64,0.00037272,2]
[320818416,1711573832439,-154.64,0.0003741,2]
[320818417,1711573832448,-159.5577127,0.00037473,2]
[320818418,1711573832458,-154.64,0.00037549,2]
[320818419,1711573832467,-154.64,0.00037687,2]
[320818420,1711573832476,-154.64,0.00037825,2]
[320818421,1711573832485,-154.64,0.00037963,2]
[320818422,1711573832495,-154.64,0.00038101,2]
[320818423,1711573832504,-171.53,0.00038162,2]
[320818424,1711573832513,-154.64,0.0003824,2]
[320818425,1711573832523,-1167.6,0.00038271,2]
[320818426,1711573832532,-154.64,0.00038378,2]
[320818427,1711573832542,-154.64,0.00038516,2]
[320818428,1711573832551,-154.64,0.00038654,2]
[320818429,1711573832560,-537.8,0.00038718,2]
[320818430,1711573832696,-537.8,0.00038728,2]
[320818431,1711573832707,-537.8,0.00038739,2]
[320818432,1711573832716,-537.8,0.00038749,2]
[320818433,1711573832726,-537.8,0.00038759,2]
[320818434,1711573832736,-537.8,0.00038769,2]
[320818435,1711573832745,-537.8,0.00038779,2]
[320818436,1711573832754,-537.8,0.0003879,2]
[320818437,1711573832763,-154.64,0.00038793,2]
[320818438,1711573832771,-537.8,0.000388,2]
[320818439,1711573832782,-537.8,0.0003881,2]
[320818440,1711573832792,-88.17726438,0.0003882,2]
[320818492,1711573839825,-449.62273562,0.0003882,2]
[320818493,1711573839836,-537.8,0.0003883,2]
[320818494,1711573839846,-537.8,0.00038841,2]
[320818495,1711573839855,-800.0,0.00038849,2]
[320818496,1711573839865,-537.8,0.00038851,2]
[320818497,1711573839874,-537.8,0.00038861,2]
[320818498,1711573839884,-537.8,0.00038871,2]
[320818499,1711573839895,-537.8,0.00038881,2]
[320818500,1711573839905,-537.8,0.00038892,2]
[320818501,1711573839914,-537.8,0.00038902,2]
[320818502,1711573839924,-400.0,0.00038902,2]
[320818503,1711573839933,-230.0,0.00038902,120]
[320818504,1711573839943,-537.8,0.00038912,2]
[320818505,1711573839952,-154.64,0.00038931,2]
[320818506,1711573839962,-4670.77518045,0.00038969,2]
[320818507,1711573839972,-13537.68162187,0.0003897,2]
[320818538,1711573842964,-11061.55541254,0.0003897,2]
[320818539,1711573843137,-300.0,0.0003897,2]
[320818540,1711573843204,-13198.24617599,0.0003897,2]
[320818541,1711573843213,-6237.05753828,0.00039,2]
[320818542,1711573843222,-154.64,0.00039069,2]
[320818543,1711573843232,-21199.71886164,0.00039164,2]
[320818544,1711573843250,-494.45,0.00039188,2]
[320818545,1711573843265,-216.68,0.00039264,15]
[320818546,1711573843275,-1333.37,0.00039307,2]
[320818547,1711573843286,-13777.87058149,0.00039413,2]
[320818548,1711573843299,-21546.12941851,0.00039413,2]
[320818549,1711573843311,-8102.0,0.00039476,2]
[320818550,1711573843321,-159.5577127,0.00039735,2]
[320818552,1711573843331,-162.85775373,0.00039896,2]
[320818553,1711573843340,-800.0,0.00039977,15]
[320818554,1711573843350,-500.0,0.00039977,20]
[320818555,1711573843359,-1000.0,0.0004,120]
[320818556,1711573843369,-520.16,0.0004006,2]
[320818557,1711573843379,-17640.02488216,0.0004007,2]
[320818561,1711573845850,-14276.7960592,0.0004007,2]
[320818562,1711573845861,-5497.3383,0.00040099,2]
[320818563,1711573845871,-5288.64206595,0.00040165,2]
[320818564,1711573845884,-546.99368043,0.00040165,2]
[320818565,1711573846024,-529.54925004,0.00040165,2]
[320818608,1711575032240,-441.45269536,0.00020799,2]
[320818610,1711575032250,-1658.1742291,0.00020799,2]
[320818616,1711575032301,-1989.68761863,0.00020799,2]
[320818618,1711575032311,-1249.19045626,0.00020799,2]
[320818620,1711575032320,-766.61468577,0.000208,2]
[320818622,1711575032331,-160.13098098,0.00020899,2]
[320818624,1711575032340,-363.66320945,0.00020999,2]
[320818626,1711575032350,-341.66314673,0.00020999,2]
[320818628,1711575032359,-291.12818161,0.00020999,2]
[320818630,1711575032369,-178.66401072,0.00020999,2]
[320818632,1711575032378,-223.94252704,0.00024,2]
[320818634,1711575032388,-160.13098093,0.00024885,2]
[320818636,1711575032397,-160.13098093,0.00028871,2]
[320818638,1711575032407,-875.0,0.000307,2]
[320818640,1711575032417,-160.13098093,0.00032857,2]
[320818642,1711575032427,-443.04,0.00036787,2]
[320818644,1711575032436,-160.13098093,0.00036842,2]
[320818646,1711575032446,-244.32,0.00036842,2]
[320818648,1711575032455,-150.0,0.00037662,3]
[320818650,1711575032465,-150.0,0.00037663,2]
[320818652,1711575032475,-660.18,0.00038177,2]
[320818654,1711575032484,-297.17471404,0.00038207,30]
[320818656,1711575032495,-250.0,0.00038449,2]
[320818659,1711575032505,-191.89,0.00038474,10]
[320818661,1711575032515,-535.41832237,0.00038574,4]
[320818663,1711575032525,-250.0,0.0003858,2]
[320818664,1711575032534,-184.0,0.00038584,120]
[320818666,1711575032545,-1060.72,0.00038584,2]
[320818669,1711575032555,-443.78,0.00038584,2]
[320818671,1711575032565,-520.0,0.00038584,2]
[320818673,1711575032576,-211.04164997,0.00038593,4]
[320818675,1711575032586,-155.0,0.00038593,4]
[320818678,1711575032596,-409.57672825,0.00038593,4]
[320818680,1711575032606,-335.18173765,0.00038593,4]
[320818682,1711575032616,-155.14111248,0.00038593,4]
[320818683,1711575032625,-211.81970119,0.00038593,4]
[320818684,1711575032635,-253.47325599,0.00038593,4]
[320818686,1711575032644,-196.26787983,0.00038593,4]
[320818688,1711575032654,-62.55457159,0.00038593,4]
[320818690,1711575032670,-121.5816592,0.00038593,4]
[320818692,1711575032683,-128.4183408,0.00038593,4]
[320818695,1711575032697,-67.55032955,0.00038593,4]
[320818697,1711575032707,-160.1119424,0.00038593,4]
[320818699,1711575032718,-169.62330603,0.00038593,4]
[320818701,1711575032729,-262.77985487,0.00038593,4]
[320818703,1711575032739,-78.49970448,0.00038593,4]
[320818707,1711575032775,-76.50029552,0.00038593,4]
[320818709,1711575032784,-349.71152649,0.00038593,4]
[320818711,1711575032794,-283.75527799,0.00038593,4]
[320818715,1711575032821,-159.8631895,0.00038593,4]
[320818717,1711575032831,-155.17588686,0.00038593,4]
[320818719,1711575032841,-277.37815344,0.00038593,4]
[320818721,1711575032851,-311.78118576,0.00038594,4]
[320818723,1711575032861,-155.78787399,0.00038594,4]
[320818725,1711575032870,-406.08005128,0.00038594,4]
[320818727,1711575032880,-607.09,0.00038594,4]
[320818729,1711575032889,-14428.88,0.00038595,2]
[320818731,1711575032899,-234.46,0.00038624,2]
[320818733,1711575032909,-703.43,0.00038698,2]
[320818735,1711575032919,-500.0,0.000387,2]
[320818737,1711575032928,-443.04,0.00039051,2]
[320818739,1711575032938,-203.13,0.00039055,15]
[320818741,1711575032949,-480.0,0.00039055,2]
[320818743,1711575032959,-250.0,0.00039055,112]
[320818744,1711575032969,-155.0,0.0003936,4]
[320818745,1711575032979,-2263.7819503,0.00039665,2]
[320818746,1711575032989,-1000.0,0.00039841,2]
[320818747,1711575032999,-162.85775373,0.00039896,2]
[320818748,1711575033008,-800.0,0.00039975,15]
[320818749,1711575033018,-200.0,0.00039975,15]
[320818750,1711575033027,-800.0,0.00039975,15]
[320818751,1711575033037,-500.0,0.00039975,20]
[320818752,1711575033047,-200.0,0.00039975,20]
[320818753,1711575033056,-200.0,0.00039976,15]
[320818754,1711575033067,-200.0,0.00039976,15]
[320818755,1711575033077,-200.0,0.00039976,15]
[320818756,1711575033087,-800.0,0.00039976,15]
[320818757,1711575033096,-800.0,0.00039976,15]
[320818758,1711575033106,-800.0,0.00039976,15]
[320818759,1711575033115,-500.0,0.00039976,20]
[320818760,1711575033125,-500.0,0.00039976,20]
[320818761,1711575033135,-500.0,0.00039976,20]
[320818762,1711575033144,-200.0,0.00039976,20]
[320818763,1711575033154,-200.0,0.00039976,20]
[320818764,1711575033164,-200.0,0.00039976,20]
[320818765,1711575033174,-264.67,0.00040056,2]
[320818766,1711575033184,-2453.8176,0.00040095,2]
[320818767,1711575033193,-1558.026,0.00040095,2]
[320818768,1711575033203,-1772.28684429,0.00040163,4]
[320818769,1711575033213,-162.01411132,0.00040164,31]
[320818770,1711575033223,-612.4536,0.00040165,2]
[320818771,1711575033234,-173.37121215,0.00040165,2]
[320818772,1711575033245,-510.55915824,0.00040165,30]
[320818773,1711575033255,-31805.82291418,0.00040165,4]
[320818774,1711575033268,-461.6,0.00040165,4]
[320818783,1711575038032,-3519.3,0.00040165,4]
[320818840,1711575040269,-162.85775373,0.00039896,2]
[320818841,1711575040280,-1249.91066861,0.00040165,4]
[320818842,1711575040410,-69212.78530157,0.00040165,4]
[320818852,1711575043103,-600.64996105,0.00040165,4]
[320818853,1711575043136,-11.56585519,0.00040165,4]
[320818854,1711575043326,-1645.29368395,0.00040165,4]
[320818886,1711576160150,-794.18355687,0.00030475,2]
[320818887,1711576160172,-516.55555941,0.00030476,4]
[320818905,1711576232128,-800.0,0.00030475,2]
[320818906,1711576232238,-155.0,0.00030476,2]
[320818907,1711576232248,-4901.15795281,0.00030482,4]
[320818908,1711576232258,-1882.8052,0.00030483,120]
[320818909,1711576232267,-163.38,0.00030584,2]
[320818910,1711576232280,-475.85,0.00036548,2]
[320818911,1711576232290,-502.65266863,0.00037859,2]
[320818912,1711576232299,-150.0,0.0003786,3]
[320818913,1711576232310,-499.99,0.0003786,2]
[320818914,1711576232319,-4528.35,0.0003786,2]
[320818915,1711576232329,-28970.26,0.00037861,2]
[320818916,1711576232339,-250.0,0.00038183,112]
[320818917,1711576232348,-500.0,0.00038214,2]
[320818918,1711576232358,-295.18,0.0003823,2]
[320818919,1711576232369,-883.93,0.0003823,2]
[320818920,1711576232378,-191.89,0.0003823,10]
[320818921,1711576232387,-416.0,0.0003823,2]
[320818922,1711576232397,-250.0,0.0003828,2]
[320818923,1711576232408,-250.0,0.00038285,2]
[320818924,1711576232418,-150.48,0.0003829,2]
[320818925,1711576232428,-584.0,0.00038333,2]
[320818926,1711576232438,-190.43,0.00038458,15]
[320818927,1711576232448,-221.36,0.00038458,2]
[320818928,1711576232458,-156.53,0.00038714,2]
[320818929,1711576232468,-659.3,0.00038714,2]
[320818930,1711576232478,-156.53,0.00038753,2]
[320818931,1711576232488,-156.53,0.00038792,2]
[320818932,1711576232497,-475.85,0.00038812,2]
[320818933,1711576232507,-156.53,0.0003883,2]
[320818934,1711576232517,-170.32,0.00038839,2]
[320818935,1711576232527,-156.53,0.00038869,2]
[320818936,1711576232537,-156.53,0.00038908,2]
[320818937,1711576232547,-6144.78,0.00039484,2]
[320818939,1711576232558,-5270.71,0.00039484,2]
[320818941,1711576232569,-19999.99,0.00039484,2]
[320818943,1711576232581,-162.85775373,0.00039896,2]
[320818944,1711576232590,-200.0,0.00039932,15]
[320818945,1711576232601,-872.69209881,0.00039958,2]
[320818946,1711576232612,-406.85,0.00039958,3]
[320818947,1711576232624,-203.43,0.00039958,3]
[320818948,1711576232634,-610.31,0.00039958,3]
[320818949,1711576232646,-469.2421,0.00039963,2]
[320818950,1711576232658,-4398.8669,0.00039963,2]
[320818951,1711576232668,-43136.9095,0.00039963,2]
[320818952,1711576232678,-20316.91241592,0.00039968,2]
[320818953,1711576232688,-150.35492262,0.00039968,9]
[320818954,1711576232698,-200.0,0.00039976,15]
[320818955,1711576232708,-800.0,0.00039976,15]
[320818956,1711576232718,-800.0,0.00039976,15]
[320818957,1711576232729,-200.0,0.00039976,15]
[320818958,1711576232740,-500.0,0.00039976,20]
[320818959,1711576232750,-200.0,0.00039976,20]
[320818960,1711576232763,-468.14,0.00040053,2]
[320818961,1711576232774,-157.032806,0.00040056,29]
[320818962,1711576232785,-157.032806,0.00040057,30]
[320818963,1711576232796,-157.032806,0.00040058,31]
[320818964,1711576232808,-322.52860321,0.00040058,12]
[320818965,1711576232819,-157.032806,0.00040059,32]
[320818966,1711576232831,-157.032806,0.0004006,33]
[320818967,1711576232844,-157.032806,0.00040061,34]
[320818968,1711576232856,-1424.7112,0.00040063,2]
[320818969,1711576232868,-167330.3053,0.00040063,2]
[320818970,1711576232877,-150.0,0.00040099,2]
[320818971,1711576232888,-23692.0236,0.000401,2]
[320818972,1711576232899,-3458.869,0.000401,2]
[320818973,1711576232909,-11175.6128,0.000401,2]
[320818974,1711576232918,-13943.5559,0.000401,2]
[320818975,1711576232927,-150.0,0.00040145,2]
[320818976,1711576232937,-820.44856407,0.00040148,2]
[320818977,1711576232948,-468.14,0.00040148,2]
[320818978,1711576232958,-468.14,0.00040148,2]
[320818979,1711576232968,-1000.0,0.0004015,2]
[320818980,1711576232979,-157.032806,0.00040157,35]
[320818981,1711576232990,-157.032806,0.00040158,36]
[320818982,1711576233002,-10200.1731517,0.00040158,2]
[320818983,1711576233012,-37637.81681302,0.00040158,2]
[320818984,1711576233049,-533.76,0.00040158,2]
[320818985,1711576233063,-1373.27,0.00040158,2]
[320818986,1711576233078,-444.06,0.00040158,2]
[320818987,1711576233098,-4431.13180615,0.00040158,2]
[320818988,1711576233112,-280.56667432,0.00040158,2]
[320819040,1711576238414,-2000.0,0.00030481,2]
[320819042,1711576238424,-1051.9520567,0.00039868,2]
[320819111,1711576240165,-1690.24453729,0.00039868,2]
[320819112,1711576240334,-1725.87572985,0.00039868,2]
[320819113,1711576240344,-191219.06854131,0.00040158,2]
[320819114,1711576240353,-19724.9404254,0.00040158,2]
[320819115,1711576240362,-379.6298743,0.00040158,2]
[320819116,1711576240512,-157.032806,0.00040159,37]
[320819117,1711576240529,-157.032806,0.0004016,38]
[320819118,1711576240538,-157.032806,0.00040161,39]
[320819119,1711576240547,-157.032806,0.00040162,40]
[320819120,1711576240556,-598.58717066,0.00040164,120]
[320819121,1711576240566,-40354.79902922,0.00040165,4]
[320819122,1711576240575,-382.50737698,0.00040165,30]
[320819124,1711576240584,-1955.1188,0.00040195,2]
[320819126,1711576240593,-3364.80293691,0.000402,2]
[320819127,1711576240602,-1000.0,0.000402,7]
[320819129,1711576240612,-150.0,0.00040235,2]
[320819130,1711576240622,-168.0,0.0004026,47]
[320819131,1711576240631,-150.0,0.00040275,2]
[320819132,1711576240641,-1754.92893969,0.00040294,4]
[320819133,1711576240650,-929.93739095,0.00040295,2]
[320819134,1711576240659,-776.0493619,0.00040296,2]
[320819136,1711576240668,-157.27631021,0.00040297,4]
[320819137,1711576240678,-205.63715197,0.00040298,2]
[320819139,1711576240687,-5011.65703422,0.00040298,2]
[320819141,1711576240697,-2340.53772574,0.00040298,4]
[320819142,1711576240706,-854.39066674,0.00040299,5]
[320819144,1711576240716,-11782.28767906,0.000403,4]
[320819145,1711576240725,-2878.22200595,0.000403,4]
[320819146,1711576240734,-472.0,0.000403,15]
[320819147,1711576240743,-2200.51471822,0.0004035,4]
[320819148,1711576240752,-800.0,0.00040356,2]
[320819149,1711576240762,-175.639999,0.0004037,2]
[320819150,1711576240771,-400.0,0.0004037,2]
[320819151,1711576240780,-164.57786942,0.0004037,2]
[320819152,1711576240790,-150.16829054,0.0004037,2]
[320819153,1711576240799,-150.0,0.0004037,2]
[320819154,1711576240808,-150.0,0.0004037,2]
[320819155,1711576240817,-150.0,0.0004037,2]
[320819156,1711576240826,-150.0,0.0004037,2]
[320819157,1711576240835,-150.0,0.0004037,2]
[320819158,1711576240845,-150.0,0.0004037,2]
[320819159,1711576240854,-150.0,0.0004037,2]
[320819160,1711576240863,-150.0,0.0004037,2]
[320819161,1711576240873,-150.0,0.0004037,2]
[320819162,1711576240882,-29763.36683678,0.0004037,10]
[320819163,1711576240891,-479.0,0.000404,26]
[320819164,1711576240900,-600.0,0.000404,120]
[320819165,1711576240910,-461.494092,0.00040415,2]
[320819166,1711576240919,-21291.48201,0.00040465,2]
[320819167,1711576240929,-295.18,0.0004097,2]
[320819168,1711576240938,-183.0,0.00041096,2]
[320819169,1711576240947,-190.43,0.00041197,15]
[320819170,1711576240956,-813.7,0.00041328,3]
[320819171,1711576240966,-406.86,0.00041328,3]
[320819172,1711576240975,-1106.94,0.00041708,2]
[320819173,1711576240985,-167.67,0.00041928,2]
[320819174,1711576240995,-191.89,0.00041976,10]
[320819175,1711576241003,-180.0,0.00041981,2]
[320819176,1711576241013,-317.13781468,0.00042,2]
[320819177,1711576241022,-150.35492262,0.00042424,10]
[320819178,1711576241032,-168.0,0.0004264,51]
[320819179,1711576241041,-161.26,0.00042666,2]
[320819180,1711576241051,-300.0,0.00042666,2]
[320819181,1711576241063,-415.37,0.00042666,2]
[320819182,1711576241072,-20316.9124159,0.00042801,2]
[320819183,1711576241081,-416.0,0.00043009,2]
[320819184,1711576241090,-584.0,0.00043125,2]
[320819185,1711576241100,-184.0,0.00043407,120]
[320819186,1711576241109,-295.18,0.00043709,2]
[320819187,1711576241118,-190.43,0.00043937,15]
[320819188,1711576241128,-3545.63912684,0.00044,2]
[320819189,1711576241139,-483.0,0.00044,10]
[320819190,1711576241154,-150.0,0.00044603,2]
[320819191,1711576241163,-150.0,0.00044603,2]
[320819192,1711576241173,-1000.0,0.000448,30]
[320819193,1711576241182,-150.35492262,0.0004488,12]
[320819194,1711576241191,-400.0,0.00045,14]
[320819195,1711576241200,-278.0,0.0004501,56]
[320819196,1711576241210,-766.0,0.00045424,7]
[320819197,1711576241219,-300.0,0.00045425,2]
[320819198,1711576241228,-468.14,0.00045624,2]
[320819199,1711576241237,-20316.9124159,0.00045634,2]
[320819200,1711576241247,-1316.52,0.0004567,2]
[320819201,1711576241256,-514.92,0.00046093,2]
[320819202,1711576241265,-924.51,0.00046528,2]
[320819203,1711576241278,-924.51,0.00046528,2]
[320819204,1711576241287,-923.01,0.00046528,2]
[320819205,1711576241296,-190.43,0.00046677,15]
[320819206,1711576241305,-517.72,0.00046903,2]
[320819207,1711576241315,-150.0,0.00046903,2]
[320819208,1711576241324,-150.0,0.00046903,2]
[320819209,1711576241333,-1034.92,0.00046903,2]
[320819210,1711576241342,-150.0,0.00046903,2]
[320819211,1711576241351,-150.0,0.00047068,2]
[320819212,1711576241360,-150.0,0.00047068,2]
[320819213,1711576241371,-10000.0,0.00047251,30]
[320819214,1711576241380,-150.35492262,0.00047336,13]
[320819215,1711576241389,-173.032806,0.00047448,104]
[320819216,1711576241399,-414.08,0.00047486,2]
[320819217,1711576241409,-409.3,0.00047486,2]
[320819218,1711576241419,-409.3,0.00047486,2]
[320819219,1711576241428,-409.3,0.00047486,2]
[320819220,1711576241437,-409.3,0.00047486,2]
[320819221,1711576241446,-150.0,0.00047616,2]
[320819222,1711576241455,-150.0,0.00047616,2]
[320819223,1711576241464,-150.0,0.00047616,2]
[320819224,1711576241473,-150.0,0.00047616,2]
[320819225,1711576241482,-150.0,0.00047616,2]
[320819226,1711576241491,-212.63,0.00047616,2]
[320819227,1711576241501,-415.44,0.00047623,2]
[320819228,1711576241510,-151.85,0.00047623,2]
[320819229,1711576241520,-245.68,0.00047623,2]
[320819230,1711576241529,-1034.57,0.00047623,2]
[320819231,1711576241538,-517.46,0.00047623,2]
[320819232,1711576241547,-173.032806,0.00047748,105]
[320819233,1711576241556,-416.0,0.00047787,2]
[320819234,1711576241565,-584.0,0.00047917,2]
[320819235,1711576241574,-173.032806,0.00048148,106]
[320819236,1711576241583,-210.1366,0.00048152,2]
[320819237,1711576241592,-184.0,0.0004823,120]
[320819238,1711576241601,-458.0,0.00048252,2]
[320819239,1711576241612,-2420.0,0.00048252,2]
[320819240,1711576241622,-1381.0,0.00048252,2]
[320819241,1711576241631,-961.0,0.00048252,2]
[320819242,1711576241640,-537.0,0.00048252,2]
[320819243,1711576241650,-1252.0,0.00048252,2]
[320819244,1711576241658,-1225.0,0.00048252,2]
[320819245,1711576241667,-280.713,0.00048252,2]
[320819246,1711576241676,-433.0,0.00048252,2]
[320819247,1711576241685,-802.0,0.00048252,2]
[320819248,1711576241694,-1267.0,0.00048252,2]
[320819249,1711576241704,-604.0,0.00048252,2]
[320819250,1711576241713,-1461.0,0.00048252,2]
[320819251,1711576241722,-150.315,0.00048252,2]
[320819252,1711576241731,-2959.0,0.00048252,2]
[320819253,1711576241740,-396.0,0.00048252,2]
[320819254,1711576241750,-1138.0,0.00048252,2]
[320819255,1711576241759,-1626.0,0.00048252,2]
[320819256,1711576241768,-150.0,0.00048252,2]
[320819257,1711576241777,-2423.0,0.00048252,2]
[320819258,1711576241786,-213.0,0.00048252,2]
[320819259,1711576241795,-5680.0,0.00048252,2]
[320819260,1711576241804,-4771.0,0.00048252,2]
[320819261,1711576241814,-1176.0,0.00048252,2]
[320819262,1711576241823,-2449.0,0.00048252,2]
[320819263,1711576241833,-42964.0,0.00048252,2]
[320819264,1711576241842,-1046.0,0.00048252,2]
[320819265,1711576241852,-173.032806,0.00048448,107]
[320819266,1711576241861,-20316.9124159,0.00048467,2]
[320819267,1711576241871,-356.98866528,0.000486,2]
[320819268,1711576241880,-1016.0,0.000487,117]
[320819269,1711576241889,-150.0,0.00048712,2]
[320819270,1711576241898,-150.0,0.00048712,2]
[320819271,1711576241907,-150.0,0.00048712,2]
[320819272,1711576241916,-150.0,0.00048712,2]
[320819273,1711576241925,-150.0,0.00048712,2]
[320819274,1711576241934,-150.0,0.00048712,2]
[320819275,1711576241943,-339.82,0.00048712,2]
[320819276,1711576241952,-173.032806,0.00048748,108]
[320819277,1711576241961,-617.49031004,0.00048798,10]
[320819278,1711576241971,-2272.13462226,0.000488,25]
[320819279,1711576241980,-195.30838005,0.000488,25]
[320819280,1711576241989,-150.24732691,0.000488,40]
[320819281,1711576241999,-468.14,0.0004887,2]
[320819282,1711576242008,-468.14,0.0004887,2]
[320819283,1711576242017,-468.14,0.0004887,2]
[320819284,1711576242026,-157487.07021059,0.0004888,2]
[320819285,1711576242040,-2868.20677174,0.0004888,2]
[320819286,1711576242052,-109469.46400653,0.0004888,2]
[320819287,1711576242083,-821.90744022,0.0004888,2]
[320819288,1711576242095,-688.57565016,0.0004888,2]
[320819289,1711576242112,-430.934,0.0004888,2]
[320819290,1711576243136,-309.03940267,0.00040058,2]
[320819291,1711576243145,-150.0,0.00040117,2]
[320819292,1711576243154,-150.0,0.00040141,2]
[320819293,1711576243164,-221.36,0.0004248,2]
[320819295,1711576243173,-768.26654733,0.00042649,2]
[320819296,1711576243412,-150.0,0.00042545,2]
[320819297,1711576243422,-251.47892665,0.00042649,2]
[320819298,1711576243435,-316.70319193,0.00042649,2]
[320819299,1711576243470,-150.0,0.00042383,2]
[320819300,1711576243480,-3131.62365787,0.00042649,2]
[320819301,1711576243490,-2874.34548,0.00047251,30]
[320819302,1711576243637,-4494.67146496,0.00047251,30]
[320819303,1711576243695,-2630.98305504,0.00047251,30]
[320819304,1711576243705,-150.48,0.00047931,2]
[320819305,1711576243714,-150.0,0.00047963,7]
[320819306,1711576243724,-150.0,0.00048723,7]
[320819307,1711576243734,-549.21768859,0.0004888,2]